[Event "MČR juniorů a juniorek v rapid šachu 2024"]
[Site "Hotel Fit Fun, Harrachov, Czech Republic"]
[Date "2024.09.21"]
[Round "5.15"]
[White "Stocek Martin"]
[Black "Housa Jan"]
[Result "1-0"]
[TimeControl "20+5"]
[WhiteFideId "380121"]
[BlackFideId "23736356"]
[WhiteElo "2021"]
[BlackElo "1788"]

1. d4 {[%clk 00:20:09]} Nf6 {[%clk 00:20:09]} {[%emt 00:00:02]} 2. c4 {[%clk
00:20:13]} {[%emt 00:00:01]} g6 {[%clk 00:20:13]} {[%emt 00:00:01]} 3. Nc3
{[%clk 00:20:17]} {[%emt 00:00:01]} d5 {[%clk 00:20:16]} {[%emt 00:00:02]} 4.
Nf3 {[%clk 00:20:21]} Bg7 {[%clk 00:20:20]} {[%emt 00:00:01]} 5. Qb3 {[%clk
00:20:24]} {[%emt 00:00:02]} c6 {[%clk 00:20:18]} {[%emt 00:00:07]} 6. cxd5
{[%clk 00:20:24]} {[%emt 00:00:05]} cxd5 {[%clk 00:20:20]} {[%emt 00:00:04]} 7.
Bg5 {[%clk 00:20:14]} {[%emt 00:00:14]} e6 {[%clk 00:18:29]} {[%emt 00:01:56]}
8. e3 {[%clk 00:20:17]} {[%emt 00:00:02]} O-O {[%clk 00:18:27]} {[%emt
00:00:06]} 9. Bd3 {[%clk 00:20:09]} {[%emt 00:00:13]} Nc6 {[%clk 00:18:09]}
{[%emt 00:00:24]} 10. O-O {[%clk 00:19:53]} {[%emt 00:00:21]} h6 {[%clk
00:17:38]} {[%emt 00:00:36]} 11. Bh4 {[%clk 00:19:57]} {[%emt 00:00:01]} b6
{[%clk 00:17:31]} {[%emt 00:00:13]} 12. Ne5 {[%clk 00:19:38]} {[%emt 00:00:23]}
g5 {[%clk 00:17:23]} {[%emt 00:00:13]} 13. Bg3 {[%clk 00:19:41]} {[%emt
00:00:01]} Bb7 {[%clk 00:16:51]} {[%emt 00:00:38]} 14. Rac1 {[%clk 00:19:31]}
{[%emt 00:00:14]} Rc8 {[%clk 00:16:53]} {[%emt 00:00:03]} 15. Nb5 {[%clk
00:14:21]} {[%emt 00:05:16]} a6 {[%clk 00:15:08]} {[%emt 00:01:51]} 16. Nxc6
{[%clk 00:14:10]} {[%emt 00:00:15]} Rxc6 {[%clk 00:14:32]} {[%emt 00:00:41]} 17.
Rxc6 {[%clk 00:12:05]} {[%emt 00:02:09]} Bxc6 {[%clk 00:14:30]} {[%emt
00:00:08]} 18. Nc3 {[%clk 00:11:54]} {[%emt 00:00:16]} b5 {[%clk 00:13:38]}
{[%emt 00:00:57]} 19. Be5 {[%clk 00:11:54]} {[%emt 00:00:04]} Ne4 {[%clk
00:13:01]} {[%emt 00:00:43]} 20. Bxg7 {[%clk 00:11:18]} {[%emt 00:00:42]} Kxg7
{[%clk 00:13:03]} {[%emt 00:00:03]} 21. Bxe4 {[%clk 00:11:05]} {[%emt
00:00:17]} dxe4 {[%clk 00:13:06]} {[%emt 00:00:03]} 22. Qc2 {[%clk 00:10:22]}
{[%emt 00:00:48]} Qa8 {[%clk 00:12:22]} {[%emt 00:00:49]} 23. a3 {[%clk
00:06:09]} {[%emt 00:04:19]} Rc8 {[%clk 00:09:46]} {[%emt 00:02:40]} 24. Qd1
{[%clk 00:05:41]} {[%emt 00:00:33]} Bd5 {[%clk 00:08:36]} {[%emt 00:01:15]} 25.
Qg4 {[%clk 00:04:22]} {[%emt 00:01:24]} Qc6 {[%clk 00:08:20]} {[%emt 00:00:20]}
26. h4 {[%clk 00:03:18]} {[%emt 00:01:09]} f5 {[%clk 00:07:37]} {[%emt
00:00:49]} 27. Qg3 {[%clk 00:03:13]} {[%emt 00:00:10]} g4 {[%clk 00:07:01]}
{[%emt 00:00:40]} 28. Qe5+ {[%clk 00:03:06]} {[%emt 00:00:12]} Kg6 {[%clk
00:06:07]} {[%emt 00:00:59]} 29. Ne2 {[%clk 00:01:00]} {[%emt 00:02:12]} Qc7
{[%clk 00:05:02]} {[%emt 00:01:11]} 30. Qxc7 {[%clk 00:00:13]} {[%emt
00:00:51]} Rxc7 {[%clk 00:05:05]} {[%emt 00:00:02]} 31. Nc3 {[%clk 00:00:18]}
Kf7 {[%clk 00:03:45]} {[%emt 00:01:25]} 32. Kh2 {[%clk 00:00:20]} {[%emt
00:00:03]} Ke7 {[%clk 00:03:02]} {[%emt 00:00:48]} 33. Kg3 {[%clk 00:00:24]}
Kd6 {[%clk 00:02:54]} {[%emt 00:00:12]} 34. Kf4 {[%clk 00:00:28]} {[%emt
00:00:02]} Bc4 {[%clk 00:02:23]} {[%emt 00:00:36]} 35. Rc1 {[%clk 00:00:23]}
{[%emt 00:00:10]} Bd3 {[%clk 00:02:21]} {[%emt 00:00:07]} 36. Rd1 {[%clk
00:00:16]} {[%emt 00:00:12]} Be2 {[%clk 00:02:07]} {[%emt 00:00:19]} 37. Rd2
{[%clk 00:00:20]} {[%emt 00:00:02]} Bd3 {[%clk 00:02:03]} {[%emt 00:00:08]} 38.
Na2 {[%clk 00:00:12]} {[%emt 00:00:13]} a5 {[%clk 00:01:24]} {[%emt 00:00:45]}
39. Nc3 {[%clk 00:00:08]} {[%emt 00:00:09]} Rc6 {[%clk 00:00:52]} {[%emt
00:00:35]} 40. f3 {[%clk 00:00:10]} {[%emt 00:00:04]} b4 {[%clk 00:00:34]}
{[%emt 00:00:23]} 41. axb4 {[%clk 00:00:14]} {[%emt 00:00:01]} axb4 {[%clk
00:00:38]} {[%emt 00:00:01]} 42. Na4 {[%clk 00:00:17]} {[%emt 00:00:03]} Rc2
{[%clk 00:00:12]} {[%emt 00:00:31]} 43. Rxc2 {[%clk 00:00:11]} {[%emt
00:00:10]} Bxc2 {[%clk 00:00:15]} 44. Nb6 {[%clk 00:00:10]} {[%emt 00:00:07]}
exf3 {[%clk 00:00:16]} {[%emt 00:00:04]} 45. gxf3 {[%clk 00:00:15]} {[%emt
00:00:01]} b3 {[%clk 00:00:17]} {[%emt 00:00:03]} 46. fxg4 {[%clk 00:00:16]}
{[%emt 00:00:04]} fxg4 {[%clk 00:00:20]} {[%emt 00:00:02]} 47. Kxg4 {[%clk
00:00:18]} {[%emt 00:00:03]} Kc6 {[%clk 00:00:22]} {[%emt 00:00:03]} 48. Nc4
{[%clk 00:00:14]} {[%emt 00:00:07]} Kd5 {[%clk 00:00:26]} {[%emt 00:00:03]} 49.
Nd2 {[%clk 00:00:17]} {[%emt 00:00:02]} Bd1+ {[%clk 00:00:19]} {[%emt
00:00:12]} 50. Kf4 {[%clk 00:00:21]} {[%emt 00:00:01]} Bc2 {[%clk 00:00:18]}
{[%emt 00:00:05]} 51. Kf3 {[%clk 00:00:14]} {[%emt 00:00:12]} Bd1+ {[%clk
00:00:19]} {[%emt 00:00:05]} 52. Kf2 {[%clk 00:00:18]} e5 {[%clk 00:00:16]}
{[%emt 00:00:07]} 53. dxe5 {[%clk 00:00:20]} {[%emt 00:00:04]} Kxe5 {[%clk
00:00:20]} 54. Ke1 {[%clk 00:00:16]} {[%emt 00:00:09]} Bc2 {[%clk 00:00:23]}
{[%emt 00:00:03]} 55. Ke2 {[%clk 00:00:14]} {[%emt 00:00:07]} Kf5 {[%clk
00:00:25]} {[%emt 00:00:02]} 56. Kf3 {[%clk 00:00:10]} {[%emt 00:00:09]} Bd1+
{[%clk 00:00:28]} {[%emt 00:00:02]} 57. Kg3 {[%clk 00:00:14]} h5 {[%clk
00:00:21]} {[%emt 00:00:12]} 58. e4+ {[%clk 00:00:14]} {[%emt 00:00:05]} Ke5
{[%clk 00:00:24]} {[%emt 00:00:02]} 59. Kf2 {[%clk 00:00:15]} {[%emt 00:00:04]}
Bc2 {[%clk 00:00:23]} {[%emt 00:00:07]} 60. Ke3 {[%clk 00:00:18]} {[%emt
00:00:01]} Bd1 {[%clk 00:00:26]} {[%emt 00:00:02]} 61. Nc4+ {[%clk 00:00:19]}
{[%emt 00:00:05]} Ke6 {[%clk 00:00:22]} {[%emt 00:00:08]} 62. Kf4 {[%clk
00:00:22]} {[%emt 00:00:02]} Kf6 {[%clk 00:00:20]} {[%emt 00:00:07]} 63. Ne3
{[%clk 00:00:18]} {[%emt 00:00:09]} Bc2 {[%clk 00:00:17]} {[%emt 00:00:09]} 64.
Nf5 {[%clk 00:00:14]} {[%emt 00:00:08]} Bd1 {[%clk 00:00:12]} {[%emt 00:00:10]}
65. Nd4 {[%clk 00:00:18]} Bc2 {[%clk 00:00:07]} {[%emt 00:00:10]} 66. e5+
{[%clk 00:00:21]} Kg6 {[%clk 00:00:08]} {[%emt 00:00:05]} 67. Ke3 {[%clk
00:00:17]} {[%emt 00:00:09]} Bd1 {[%clk 00:00:08]} {[%emt 00:00:05]} 68. Ke4
{[%emt 00:00:06]} 1-0



[ePGN "0.1;DGT LiveChess/2.2.6"]

[Event "MČR juniorů a juniorek v rapid šachu 2024"]
[Site "Hotel Fit Fun, Harrachov, Czech Republic"]
[Date "2024.09.21"]
[Round "5.16"]
[White "Stastna Martina"]
[Black "Stejskal Michal"]
[Result "0-1"]
[TimeControl "20+5"]
[WhiteFideId "385123"]
[BlackFideId "398195"]
[WhiteElo "1801"]
[BlackElo "1926"]

1. e4 {[%clk 00:20:09]} {[%emt 00:14:33]} e5 {[%clk 00:20:07]} {[%emt
00:00:07]} 2. Nf3 {[%clk 00:20:12]} {[%emt 00:00:02]} Nc6 {[%clk 00:20:11]}
{[%emt 00:00:01]} 3. Bb5 {[%clk 00:20:15]} {[%emt 00:00:02]} f5 {[%clk
00:20:11]} {[%emt 00:00:05]} 4. d3 {[%clk 00:20:12]} {[%emt 00:00:08]} d6
{[%clk 00:19:39]} {[%emt 00:00:37]} 5. O-O {[%clk 00:20:00]} {[%emt 00:00:17]}
Nf6 {[%clk 00:19:42]} {[%emt 00:00:02]} 6. Nc3 {[%clk 00:19:46]} {[%emt
00:00:19]} a6 {[%clk 00:19:37]} {[%emt 00:00:10]} 7. Ba4 {[%clk 00:19:30]}
{[%emt 00:00:21]} Be7 {[%clk 00:19:07]} {[%emt 00:00:33]} 8. a3 {[%clk
00:18:46]} {[%emt 00:00:50]} O-O {[%clk 00:19:00]} {[%emt 00:00:12]} 9. Bb3+
{[%clk 00:17:16]} {[%emt 00:01:35]} Kh8 {[%clk 00:19:03]} 10. Nd5 {[%clk
00:14:24]} {[%emt 00:03:00]} f4 {[%clk 00:16:14]} 11. Nxf6 {[%clk 00:11:53]}
{[%emt 00:05:31]} Bxf6 {[%clk 00:16:15]} 12. h3 {[%clk 00:11:00]} {[%emt
00:01:01]} Qe8 {[%clk 00:15:43]} 13. Nh2 {[%clk 00:09:45]} {[%emt 00:01:57]}
Bd8 {[%clk 00:14:41]} 14. c3 {[%clk 00:08:52]} {[%emt 00:02:05]} g5 {[%clk
00:13:12]} 15. Bc2 {[%clk 00:06:43]} {[%emt 00:03:48]} Kg7 {[%clk 00:12:59]}
{[%emt 00:00:17]} 16. d4 {[%clk 00:06:35]} {[%emt 00:00:14]} h5 {[%clk
00:12:42]} {[%emt 00:00:22]} 17. f3 {[%clk 00:05:54]} {[%emt 00:00:46]} Bf6
{[%clk 00:12:40]} {[%emt 00:00:07]} 18. d5 {[%clk 00:04:43]} {[%emt 00:01:16]}
Ne7 {[%clk 00:12:36]} {[%emt 00:00:08]} 19. c4 {[%clk 00:04:29]} {[%emt
00:00:20]} Bd7 {[%clk 00:12:38]} {[%emt 00:00:03]} 20. b4 {[%clk 00:04:25]}
{[%emt 00:00:09]} Qg6 {[%clk 00:12:41]} {[%emt 00:00:02]} 21. c5 {[%clk
00:04:04]} {[%emt 00:00:26]} Rh8 {[%clk 00:12:23]} {[%emt 00:00:23]} 22. Ba4
{[%clk 00:03:53]} {[%emt 00:00:16]} Bxa4 {[%clk 00:10:18]} {[%emt 00:02:11]} 23.
Qxa4 {[%clk 00:03:57]} {[%emt 00:00:01]} g4 {[%clk 00:10:21]} {[%emt 00:00:01]}
24. hxg4 {[%clk 00:02:55]} {[%emt 00:01:08]} hxg4 {[%clk 00:10:24]} {[%emt
00:00:01]} 25. Nxg4 {[%clk 00:02:58]} Qh5 {[%clk 00:10:24]} {[%emt 00:00:05]}
26. Kf2 {[%clk 00:02:40]} {[%emt 00:00:24]} Qh4+ {[%clk 00:10:20]} {[%emt
00:00:09]} 27. Ke2 {[%clk 00:02:42]} {[%emt 00:00:02]} Qg3 {[%clk 00:10:23]}
{[%emt 00:00:03]} 28. Nxf6 {[%clk 00:02:06]} {[%emt 00:00:42]} Kxf6 {[%clk
00:10:19]} {[%emt 00:00:08]} 29. Qd7 {[%clk 00:02:09]} Ng6 {[%clk 00:03:49]}
{[%emt 00:06:36]} 30. cxd6 {[%clk 00:01:36]} {[%emt 00:00:38]} cxd6 {[%clk
00:03:53]} 31. Qxd6+ {[%clk 00:01:40]} {[%emt 00:00:01]} Kg5 {[%clk 00:03:57]}
{[%emt 00:00:01]} 32. Bb2 {[%clk 00:00:36]} {[%emt 00:01:10]} Rac8 {[%clk
00:03:48]} {[%emt 00:00:13]} 33. Rac1 {[%clk 00:00:26]} {[%emt 00:00:14]} Rxc1
{[%clk 00:03:51]} {[%emt 00:00:02]} 34. Bxc1 {[%clk 00:00:30]} {[%emt
00:00:01]} Rc8 {[%clk 00:03:16]} {[%emt 00:00:41]} 35. Qe6 {[%clk 00:00:11]}
{[%emt 00:00:24]} Qxg2+ {[%clk 00:02:17]} {[%emt 00:01:03]} 36. Rf2 {[%clk
00:00:09]} {[%emt 00:00:07]} Rc2+ {[%clk 00:02:21]} {[%emt 00:00:03]} 37. Bd2
{[%clk 00:00:07]} {[%emt 00:00:07]} Rxd2+ {[%clk 00:02:24]} {[%emt 00:00:03]}
38. Kxd2 {[%clk 00:00:11]} Qxf2+ {[%clk 00:02:28]} 39. Kc1 {[%clk 00:00:11]}
{[%emt 00:00:04]} Qe3+ {[%clk 00:02:31]} {[%emt 00:00:01]} 40. Kb1 {[%clk
00:00:15]} {[%emt 00:00:02]} Qxf3 {[%clk 00:02:24]} {[%emt 00:00:13]} 41. Qf5+
{[%clk 00:00:15]} {[%emt 00:00:05]} Kh6 {[%clk 00:02:27]} {[%emt 00:00:02]} 42.
d6 {[%clk 00:00:17]} Qd3+ {[%clk 00:02:29]} {[%emt 00:00:05]} 43. Ka2 {[%clk
00:00:21]} Qxd6 {[%clk 00:02:28]} {[%emt 00:00:06]} 44. Qh3+ {[%clk 00:00:21]}
{[%emt 00:00:05]} Kg7 {[%clk 00:02:31]} 45. Qf5 {[%clk 00:00:22]} {[%emt
00:00:04]} Qe7 {[%clk 00:02:24]} {[%emt 00:00:12]} 46. Kb2 {[%clk 00:00:21]}
{[%emt 00:00:07]} Qf7 {[%clk 00:02:27]} {[%emt 00:00:03]} 47. Qg4 {[%clk
00:00:19]} {[%emt 00:00:07]} f3 {[%clk 00:02:30]} {[%emt 00:00:02]} 0-1



[ePGN "0.1;DGT LiveChess/2.2.6"]

[Event "MČR juniorů a juniorek v rapid šachu 2024"]
[Site "Hotel Fit Fun, Harrachov, Czech Republic"]
[Date "2024.09.21"]
[Round "5.17"]
[White "Andrle Filip"]
[Black "Pejrimovsky Tadeas Rubel"]
[Result "1-0"]
[TimeControl "20+5"]
[WhiteFideId "23718749"]
[BlackFideId "23709537"]
[WhiteElo "1789"]
[BlackElo "1895"]

1. e4 {[%clk 00:20:07]} {[%emt 00:00:03]} c5 {[%clk 00:20:10]} 2. Nc3 {[%clk
00:20:09]} {[%emt 00:00:04]} e6 {[%clk 00:19:47]} {[%emt 00:00:27]} 3. Nf3
{[%clk 00:19:57]} {[%emt 00:00:17]} a6 {[%clk 00:19:44]} {[%emt 00:00:09]} 4.
d4 {[%clk 00:19:52]} {[%emt 00:00:09]} cxd4 {[%clk 00:19:47]} {[%emt 00:00:02]}
5. Nxd4 {[%clk 00:19:54]} {[%emt 00:00:03]} d6 {[%clk 00:19:51]} {[%emt
00:00:01]} 6. Be2 {[%clk 00:19:30]} {[%emt 00:00:29]} Nf6 {[%clk 00:19:54]}
{[%emt 00:00:02]} 7. O-O {[%clk 00:19:32]} {[%emt 00:00:03]} Be7 {[%clk
00:19:58]} {[%emt 00:00:02]} 8. a4 {[%clk 00:19:28]} {[%emt 00:00:09]} O-O
{[%clk 00:20:00]} {[%emt 00:00:02]} 9. Be3 {[%emt 00:00:29]} Nc6 {[%clk
00:19:44]} 10. Nxc6 {[%clk 00:19:13]} {[%emt 00:00:17]} bxc6 {[%clk 00:19:46]}
{[%emt 00:00:03]} 11. a5 {[%clk 00:19:15]} {[%emt 00:00:03]} c5 {[%clk
00:19:34]} {[%emt 00:00:18]} 12. Bf3 {[%clk 00:18:43]} {[%emt 00:00:36]} Bb7
{[%clk 00:19:38]} {[%emt 00:00:01]} 13. Qd2 {[%clk 00:18:30]} {[%emt 00:00:18]}
Qc7 {[%clk 00:19:36]} {[%emt 00:00:08]} 14. e5 {[%clk 00:17:51]} {[%emt
00:00:43]} dxe5 {[%clk 00:19:04]} {[%emt 00:00:37]} 15. Bxb7 {[%clk 00:17:44]}
{[%emt 00:00:12]} Qxb7 {[%clk 00:19:07]} {[%emt 00:00:02]} 16. Na4 {[%clk
00:17:44]} {[%emt 00:00:05]} Rac8 {[%clk 00:15:49]} {[%emt 00:03:23]} 17. Qc3
{[%clk 00:17:01]} {[%emt 00:00:48]} Nd5 {[%clk 00:15:11]} {[%emt 00:00:44]} 18.
Qxe5 {[%clk 00:16:09]} {[%emt 00:00:56]} Nxe3 {[%clk 00:13:56]} {[%emt
00:01:20]} 19. Qxe3 {[%clk 00:16:00]} {[%emt 00:00:14]} Rfd8 {[%clk 00:13:59]}
{[%emt 00:00:02]} 20. Rfd1 {[%clk 00:15:33]} {[%emt 00:00:32]} Qc6 {[%clk
00:13:07]} {[%emt 00:00:58]} 21. Nb6 {[%clk 00:15:21]} {[%emt 00:00:17]} Rxd1+
{[%clk 00:12:07]} {[%emt 00:01:06]} 22. Rxd1 {[%clk 00:15:22]} {[%emt
00:00:04]} Rd8 {[%clk 00:12:11]} 23. Rxd8+ {[%clk 00:14:33]} {[%emt 00:00:55]}
Bxd8 {[%clk 00:12:14]} {[%emt 00:00:02]} 24. Qd3 {[%clk 00:13:28]} {[%emt
00:01:10]} Bxb6 {[%clk 00:10:27]} {[%emt 00:01:52]} 25. Qxa6 {[%clk 00:12:49]}
{[%emt 00:00:43]} Qd7 {[%clk 00:09:17]} {[%emt 00:01:15]} 26. axb6 {[%clk
00:12:35]} {[%emt 00:00:20]} Qd1+ {[%clk 00:09:20]} {[%emt 00:00:02]} 27. Qf1
{[%clk 00:12:37]} {[%emt 00:00:03]} Qd6 {[%clk 00:09:22]} {[%emt 00:00:02]} 28.
b7 {[%clk 00:11:45]} {[%emt 00:00:58]} Qb6 {[%clk 00:07:01]} {[%emt 00:02:26]}
29. Qa6 {[%clk 00:11:18]} {[%emt 00:00:32]} Qd8 {[%clk 00:05:43]} {[%emt
00:01:23]} 30. Qa8 {[%clk 00:11:13]} {[%emt 00:00:10]} 1-0



[ePGN "0.1;DGT LiveChess/2.2.6"]

[Event "MČR juniorů a juniorek v rapid šachu 2024"]
[Site "Hotel Fit Fun, Harrachov, Czech Republic"]
[Date "2024.09.21"]
[Round "5.18"]
[White "Hrazdira Matyas Josef"]
[Black "Zadrapova Amalie"]
[Result "1-0"]
[TimeControl "20+5"]
[WhiteFideId "23732954"]
[BlackFideId "23710276"]
[WhiteElo "1786"]
[BlackElo "1891"]

1. e4 {[%clk 00:19:13]} {[%emt 00:00:56]} c5 {[%clk 00:20:08]} {[%emt
00:00:02]} 2. Nf3 {[%clk 00:19:17]} {[%emt 00:00:02]} d6 {[%clk 00:20:12]} 3.
d4 {[%clk 00:19:21]} {[%emt 00:00:02]} cxd4 {[%clk 00:20:15]} {[%emt 00:00:01]}
4. Nxd4 {[%clk 00:19:23]} {[%emt 00:00:03]} Nf6 {[%clk 00:20:18]} {[%emt
00:00:02]} 5. Nc3 {[%clk 00:19:27]} {[%emt 00:00:02]} a6 {[%clk 00:20:22]}
{[%emt 00:00:01]} 6. f3 {[%clk 00:19:29]} {[%emt 00:00:03]} e5 {[%clk
00:20:20]} {[%emt 00:00:07]} 7. Nb3 {[%clk 00:19:26]} {[%emt 00:00:07]} Be6
{[%clk 00:20:20]} {[%emt 00:00:06]} 8. Be3 {[%clk 00:19:28]} {[%emt 00:00:03]}
Be7 {[%clk 00:20:20]} {[%emt 00:00:05]} 9. Qd2 {[%clk 00:19:23]} {[%emt
00:00:10]} b5 {[%clk 00:19:25]} {[%emt 00:00:59]} 10. Nd5 {[%clk 00:19:01]}
{[%emt 00:00:27]} Bxd5 {[%clk 00:18:59]} {[%emt 00:00:31]} 11. exd5 {[%clk
00:19:04]} {[%emt 00:00:02]} O-O {[%clk 00:17:56]} {[%emt 00:01:08]} 12. a4
{[%clk 00:18:47]} {[%emt 00:00:23]} bxa4 {[%clk 00:15:13]} {[%emt 00:02:48]} 13.
Rxa4 {[%clk 00:18:47]} {[%emt 00:00:04]} Qc7 {[%clk 00:14:51]} {[%emt
00:00:27]} 14. Be2 {[%clk 00:18:00]} {[%emt 00:00:52]} Qb7 {[%clk 00:14:22]}
{[%emt 00:00:35]} 15. Bc4 {[%clk 00:17:01]} {[%emt 00:01:03]} Rc8 {[%clk
00:14:04]} {[%emt 00:00:23]} 16. Rb4 {[%clk 00:16:20]} {[%emt 00:00:47]} Qd7
{[%clk 00:13:57]} {[%emt 00:00:11]} 17. Qd3 {[%clk 00:10:46]} {[%emt 00:05:38]}
Nh5 {[%clk 00:08:50]} {[%emt 00:05:13]} 18. O-O {[%clk 00:10:05]} {[%emt
00:00:46]} Nf4 {[%clk 00:08:45]} {[%emt 00:00:09]} 19. Bxf4 {[%clk 00:09:53]}
{[%emt 00:00:17]} exf4 {[%clk 00:08:48]} {[%emt 00:00:02]} 20. Ra1 {[%clk
00:08:59]} {[%emt 00:00:59]} f5 {[%clk 00:07:35]} {[%emt 00:01:18]} 21. Nd4
{[%clk 00:08:12]} {[%emt 00:00:53]} g6 {[%clk 00:06:02]} {[%emt 00:01:37]} 22.
Ne6 {[%clk 00:06:24]} {[%emt 00:01:54]} Qa7+ {[%clk 00:05:44]} {[%emt
00:00:22]} 23. Kh1 {[%clk 00:05:37]} {[%emt 00:00:52]} Qe3 {[%clk 00:05:32]}
{[%emt 00:00:18]} 24. Qxe3 {[%clk 00:04:48]} {[%emt 00:00:54]} fxe3 {[%clk
00:05:34]} {[%emt 00:00:02]} 25. Re1 {[%clk 00:04:48]} {[%emt 00:00:05]} a5
{[%clk 00:05:16]} {[%emt 00:00:24]} 26. Ra4 {[%clk 00:04:40]} {[%emt 00:00:12]}
Nd7 {[%clk 00:05:10]} {[%emt 00:00:11]} 27. Bd3 {[%clk 00:01:31]} {[%emt
00:03:14]} Nb6 {[%clk 00:05:09]} {[%emt 00:00:07]} 28. Ra3 {[%clk 00:01:10]}
{[%emt 00:00:26]} Nxd5 {[%clk 00:04:53]} {[%emt 00:00:21]} 29. c3 {[%clk
00:00:21]} {[%emt 00:00:54]} Kf7 {[%clk 00:04:27]} {[%emt 00:00:31]} 30. Nd4
{[%clk 00:00:23]} {[%emt 00:00:03]} Nf4 {[%clk 00:02:53]} {[%emt 00:01:39]} 31.
Be2 {[%clk 00:00:19]} {[%emt 00:00:09]} Bf6 {[%clk 00:02:26]} {[%emt 00:00:32]}
32. Nb5 {[%clk 00:00:23]} {[%emt 00:00:01]} Be7 {[%clk 00:01:41]} {[%emt
00:00:50]} 33. g3 {[%clk 00:00:24]} {[%emt 00:00:05]} Nxe2 {[%clk 00:00:43]}
{[%emt 00:01:02]} 34. Rxe2 {[%clk 00:00:28]} {[%emt 00:00:01]} d5 {[%clk
00:00:43]} {[%emt 00:00:05]} 35. Ra4 {[%clk 00:00:17]} {[%emt 00:00:16]} Bc5
{[%clk 00:00:38]} {[%emt 00:00:09]} 36. Kg2 {[%clk 00:00:19]} {[%emt 00:00:04]}
Re8 {[%clk 00:00:20]} {[%emt 00:00:23]} 37. Nc7 {[%clk 00:00:21]} {[%emt
00:00:03]} Bb6 {[%clk 00:00:16]} {[%emt 00:00:10]} 38. Nxa8 {[%clk 00:00:22]}
{[%emt 00:00:03]} Rxa8 {[%clk 00:00:19]} {[%emt 00:00:02]} 39. b4 {[%clk
00:00:25]} {[%emt 00:00:02]} Rc8 {[%clk 00:00:13]} {[%emt 00:00:11]} 40. bxa5
{[%clk 00:00:27]} {[%emt 00:00:03]} Ba7 {[%clk 00:00:16]} {[%emt 00:00:02]} 41.
Ra3 {[%clk 00:00:25]} {[%emt 00:00:07]} Ke6 {[%clk 00:00:17]} {[%emt 00:00:03]}
42. f4 {[%clk 00:00:29]} Kd6 {[%clk 00:00:18]} {[%emt 00:00:04]} 43. Kf3 {[%clk
00:00:31]} {[%emt 00:00:03]} Rc4 {[%clk 00:00:15]} {[%emt 00:00:08]} 44. a6
{[%clk 00:00:23]} {[%emt 00:00:14]} Kc6 {[%clk 00:00:08]} {[%emt 00:00:11]} 45.
Rb2 {[%clk 00:00:21]} {[%emt 00:00:07]} 1-0



[ePGN "0.1;DGT LiveChess/2.2.6"]